Workbook

Sheet Sheet1
A1: 2016年全盟部分事业单位公考招聘工作人员进入面试人员名单
A2: 序号 | B2: 姓名 | C2: 性别 | D2: 报考单位 | E2: 报考岗位 | F2: 准考证号 | G2: 民族 | H2: 职业能力倾向测验卷面成绩 | I2: 综合应用能力卷面成绩 | J2: 笔试成绩＝（《综合应用能力》成绩÷1.5）×50%＋（《职业能力倾向测验》成绩÷1.5）×50% | K2: 民族加分2.5分 | L2: 成绩 | M2: 名次 | N2: 资格复审情况
A3: 1 | B3: 王子夫 | C3: 男 | D3: 兴安广播电视台 | E3: 播音主持（男）（一般岗位） | F3: 111522014403 | G3: 蒙古族 | H3: 95 | I3: 80.5 | J3: 58.500 | K3: 2.5 | L3: =J3+K3 -> 61.000 | M3: 1 | N3: 通过
A4: 2 | B4: 赵飞 | C4: 男 | D4: 兴安广播电视台 | E4: 播音主持（男）（一般岗位） | F4: 111522014401 | G4: 汉族 | H4: 86.5 | I4: 87 | J4: 57.833 | L4: 57.833 | M4: 2 | N4: 通过
A5: 3 | B5: 万里洋 | C5: 男 | D5: 兴安广播电视台 | E5: 播音主持（男）（一般岗位） | F5: 111522014328 | G5: 蒙古族 | H5: 93 | I5: 72.5 | J5: 55.167 | K5: 2.5 | L5: 57.667 | M5: 3 | N5: 通过
A6: 4 | B6: 白冰峰 | C6: 男 | D6: 兴安广播电视台 | E6: 播音主持（男）（一般岗位） | F6: 111522014330 | G6: 蒙古族 | H6: 77 | I6: 73.5 | J6: 50.167 | K6: 2.5 | L6: 52.667 | M6: 4 | N6: 通过
A7: 5 | B7: 卢春雷 | C7: 男 | D7: 兴安广播电视台 | E7: 播音主持（男）（一般岗位） | F7: 111522014326 | G7: 蒙古族 | H7: 62.5 | I7: 61 | J7: 41.167 | K7: 2.5 | L7: 43.667 | M7: 5 | N7: 通过
A8: 6 | B8: 张宏旭 | C8: 男 | D8: 兴安广播电视台 | E8: 播音主持（男）（一般岗位） | F8: 111522014402 | G8: 其他少数民族 | H8: 47.5 | I8: 66 | J8: 37.833 | L8: 37.833 | M8: 6 | N8: 通过
A9: 7 | B9: 张炜 | C9: 女 | D9: 兴安广播电视台 | E9: 播音主持（女）（一般岗位） | F9: 111522014408 | G9: 蒙古族 | H9: 86 | I9: 90.5 | J9: 58.833 | K9: 2.5 | L9: 61.333 | M9: 1 | N9: 通过
A10: 8 | B10: 冯硕 | C10: 女 | D10: 兴安广播电视台 | E10: 播音主持（女）（一般岗位） | F10: 111522014406 | G10: 汉族 | H10: 104 | I10: 68 | J10: 57.333 | L10: 57.333 | M10: 2 | N10: 通过
A11: 9 | B11: 景燕 | C11: 女 | D11: 兴安广播电视台 | E11: 播音主持（女）（一般岗位） | F11: 111522014415 | G11: 汉族 | H11: 76.5 | I11: 94.5 | J11: 57.000 | L11: 57.000 | M11: 3 | N11: 通过
A12: 10 | B12: 黄炎 | C12: 女 | D12: 兴安广播电视台 | E12: 播音主持（女）（一般岗位） | F12: 111522014412 | G12: 汉族 | H12: 80.5 | I12: 87 | J12: 55.833 | L12: 55.833 | M12: 4 | N12: 通过
A13: 11 | B13: 韩雪 | C13: 女 | D13: 兴安广播电视台 | E13: 播音主持（女）（一般岗位） | F13: 111522014419 | G13: 蒙古族 | H13: 90.5 | I13: 69 | J13: 53.167 | K13: 2.5 | L13: 55.667 | M13: 5 | N13: 通过
A14: 12 | B14: 姜珊 | C14: 女 | D14: 兴安广播电视台 | E14: 播音主持（女）（一般岗位） | F14: 111522014414 | G14: 汉族 | H14: 72 | I14: 88 | J14: 53.333 | L14: 53.333 | M14: 6 | N14: 通过
A15: 13 | B15: 刘姝娇 | C15: 女 | D15: 兴安广播电视台 | E15: 播音主持（女）（一般岗位） | F15: 111522014416 | G15: 汉族 | H15: 78 | I15: 79.5 | J15: 52.500 | L15: 52.500 | M15: 7 | N15: 通过
A16: 14 | B16: 陈博 | C16: 女 | D16: 兴安广播电视台 | E16: 播音主持（女）（一般岗位） | F16: 111522014409 | G16: 汉族 | H16: 69 | I16: 87.5 | J16: 52.167 | L16: 52.167 | M16: 8 | N16: 通过
A17: 15 | B17: 张喆茜 | C17: 女 | D17: 兴安广播电视台 | E17: 播音主持（女）（一般岗位） | F17: 111522014407 | G17: 蒙古族 | H17: 74.5 | I17: 71 | J17: 48.500 | K17: 2.5 | L17: 51.000 | M17: 9 | N17: 通过
A18: 16 | B18: 丁玮巍 | C18: 女 | D18: 兴安广播电视台 | E18: 播音主持（女）（一般岗位） | F18: 111522014410 | G18: 汉族 | H18: 69 | I18: 83.5 | J18: 50.833 | L18: 50.833 | M18: 10 | N18: 通过
A19: 17 | B19: 孙露 | C19: 女 | D19: 兴安广播电视台 | E19: 播音主持（女）（一般岗位） | F19: 111522014421 | G19: 蒙古族 | H19: 57.5 | I19: 83 | J19: 46.833 | K19: 2.5 | L19: 49.333 | M19: 11 | N19: 通过
A20: 18 | B20: 张莹 | C20: 女 | D20: 兴安广播电视台 | E20: 播音主持（女）（一般岗位） | F20: 111522014417 | G20: 汉族 | H20: 69 | I20: 76.5 | J20: 48.500 | L20: 48.500 | M20: 12 | N20: 通过
A21: 19 | B21: 高雅儒 | C21: 女 | D21: 兴安广播电视台 | E21: 文秘（一般岗位） | F21: 111522014426 | G21: 蒙古族 | H21: 106 | I21: 91.5 | J21: 65.833 | K21: 2.5 | L21: 68.333 | M21: 1 | N21: 通过
A22: 20 | B22: 陈旭 | C22: 女 | D22: 兴安广播电视台 | E22: 文秘（一般岗位） | F22: 111522014513 | G22: 汉族 | H22: 97 | I22: 97 | J22: 64.667 | L22: 64.667 | M22: 3 | N22: 通过
A23: 21 | B23: 全吉亮 | C23: 女 | D23: 兴安广播电视台 | E23: 文秘（一般岗位） | F23: 111522014516 | G23: 蒙古族 | H23: 97 | I23: 82 | J23: 59.667 | K23: 2.5 | L23: 62.167 | M23: 4 | N23: 递补通过
A24: 22 | B24: 张晶晶 | C24: 女 | D24: 兴安广播电视台 | E24: 财会（一般岗位） | F24: 111522014710 | G24: 汉族 | H24: 83.5 | I24: 88 | J24: 57.167 | L24: 57.167 | M24: 2 | N24: 通过
A25: 23 | B25: 北忠玲 | C25: 女 | D25: 兴安广播电视台 | E25: 财会（一般岗位） | F25: 111522014613 | G25: 蒙古族 | H25: 79 | I25: 81.5 | J25: 53.500 | K25: 2.5 | L25: 56.000 | M25: 3 | N25: 通过
A26: 24 | B26: 孙旭 | C26: 女 | D26: 兴安广播电视台 | E26: 财会（一般岗位） | F26: 111522014716 | G26: 汉族 | H26: 76.5 | I26: 90 | J26: 55.500 | L26: 55.500 | M26: 4 | N26: 递补通过
A27: 25 | B27: 姜野 | C27: 男 | D27: 兴安广播电视台 | E27: 网络管理（一般岗位） | F27: 111522015023 | G27: 蒙古族 | H27: 92 | I27: 86.5 | J27: 59.500 | K27: 2.5 | L27: 62.000 | M27: 1 | N27: 通过
A28: 26 | B28: 朱连群 | C28: 男 | D28: 兴安广播电视台 | E28: 网络管理（一般岗位） | F28: 111522014823 | G28: 蒙古族 | H28: 92.5 | I28: 77 | J28: 56.500 | K28: 2.5 | L28: 59.000 | M28: 2 | N28: 通过
A29: 27 | B29: 丁爽 | C29: 女 | D29: 兴安广播电视台 | E29: 网络管理（一般岗位） | F29: 111522014912 | G29: 汉族 | H29: 91.5 | I29: 80 | J29: 57.167 | L29: 57.167 | M29: 4 | N29: 递补通过
A30: 28 | B30: 侯珊珊 | C30: 女 | D30: 兴安广播电视台 | E30: 网络管理（一般岗位） | F30: 111522014810 | G30: 其他少数民族 | H30: 79.5 | I30: 92 | J30: 57.167 | L30: 57.167 | M30: 5 | N30: 递补通过
A31: 29 | B31: 杨吐雅 | C31: 女 | D31: 兴安广播电视台 | E31: 网络管理（蒙汉兼通人员岗位） | F31: 111522070208 | G31: 蒙古族 | H31: 62.5 | I31: 91.5 | J31: 51.333 | K31: 2.5 | L31: 53.833 | M31: 1 | N31: 通过
A32: 30 | B32: 包乌日韩 | C32: 女 | D32: 兴安广播电视台 | E32: 网络管理（蒙汉兼通人员岗位） | F32: 111522070202 | G32: 蒙古族 | H32: 58 | I32: 84 | J32: 47.333 | K32: 2.5 | L32: 49.833 | M32: 2 | N32: 通过
A33: 31 | B33: 包樱桃 | C33: 女 | D33: 兴安广播电视台 | E33: 网络管理（蒙汉兼通人员岗位） | F33: 111522070212 | G33: 蒙古族 | H33: 51.5 | I33: 65 | J33: 38.833 | K33: 2.5 | L33: 41.333 | M33: 3 | N33: 通过
A34: 32 | B34: 周宇婷 | C34: 女 | D34: 兴安广播电视台 | E34: 编辑记者（一般岗位） | F34: 211522052907 | G34: 蒙古族 | H34: 101 | I34: 107 | J34: 69.333 | K34: 2.5 | L34: 71.833 | M34: 2 | N34: 通过
A35: 33 | B35: 籍瑶秀 | C35: 女 | D35: 兴安广播电视台 | E35: 编辑记者（一般岗位） | F35: 211522052505 | G35: 汉族 | H35: 108 | I35: 100 | J35: 69.333 | L35: 69.333 | M35: 3 | N35: 通过
A36: 34 | B36: 费思达 | C36: 女 | D36: 兴安广播电视台 | E36: 编辑记者（一般岗位） | F36: 211522052613 | G36: 汉族 | H36: 104.5 | I36: 103.5 | J36: 69.333 | L36: 69.333 | M36: 4 | N36: 通过
A37: 35 | B37: 刘国艳 | C37: 女 | D37: 兴安广播电视台 | E37: 编辑记者（一般岗位） | F37: 211522052816 | G37: 汉族 | H37: 98 | I37: 108.5 | J37: 68.833 | L37: 68.833 | M37: 5 | N37: 通过
A38: 36 | B38: 李响 | C38: 男 | D38: 兴安广播电视台 | E38: 编辑记者（一般岗位） | F38: 211522052525 | G38: 蒙古族 | H38: 108.5 | I38: 90 | J38: 66.167 | K38: 2.5 | L38: 68.667 | M38: 6 | N38: 通过
A39: 37 | B39: 郑伟 | C39: 女 | D39: 兴安广播电视台 | E39: 编辑记者（一般岗位） | F39: 211522052826 | G39: 汉族 | H39: 93 | I39: 112 | J39: 68.333 | L39: 68.333 | M39: 7 | N39: 通过
A40: 38 | B40: 孙璐璐 | C40: 女 | D40: 兴安广播电视台 | E40: 编辑记者（一般岗位） | F40: 211522052806 | G40: 汉族 | H40: 95.5 | I40: 108.5 | J40: 68.000 | L40: 68.000 | M40: 8 | N40: 通过
A41: 39 | B41: 潘国庆 | C41: 男 | D41: 兴安广播电视台 | E41: 编辑记者（一般岗位） | F41: 211522052910 | G41: 蒙古族 | H41: 103.5 | I41: 89 | J41: 64.167 | K41: 2.5 | L41: 66.667 | M41: 10 | N41: 通过
A42: 40 | B42: 张晓雪 | C42: 女 | D42: 兴安广播电视台 | E42: 编辑记者（一般岗位） | F42: 211522052521 | G42: 汉族 | H42: 102.5 | I42: 97 | J42: 66.500 | L42: 66.500 | M42: 11 | N42: 通过
A43: 41 | B43: 周金颖 | C43: 女 | D43: 兴安广播电视台 | E43: 编辑记者（一般岗位） | F43: 211522052605 | G43: 其他少数民族 | H43: 98.5 | I43: 99 | J43: 65.833 | L43: 65.833 | M43: 12 | N43: 通过
A44: 42 | B44: 张兆琪 | C44: 女 | D44: 兴安广播电视台 | E44: 编辑记者（一般岗位） | F44: 211522052821 | G44: 汉族 | H44: 91 | I44: 101 | J44: 64.000 | L44: 64.000 | M44: 13 | N44: 递补通过
A45: 43 | B45: 郭伟伟 | C45: 女 | D45: 兴安广播电视台 | E45: 编辑记者（一般岗位） | F45: 211522052818 | G45: 蒙古族 | H45: 82.5 | I45: 101.5 | J45: 61.333 | K45: 2.5 | L45: 63.833 | M45: 14 | N45: 递补通过
A46: 44 | B46: 许卜予 | C46: 女 | D46: 兴安广播电视台 | E46: 编辑记者（一般岗位） | F46: 211522052913 | G46: 蒙古族 | H46: 91 | I46: 93 | J46: 61.333 | K46: 2.5 | L46: 63.833 | M46: 15 | N46: 递补通过
A47: 45 | B47: 于伟利 | C47: 男 | D47: 兴安广播电视台 | E47: 编辑记者（项目人员岗位含大学生退役士兵） | F47: 211522052918 | G47: 汉族 | H47: 108.5 | I47: 109.5 | J47: 72.667 | L47: 72.667 | M47: 1 | N47: 通过
A48: 46 | B48: 刘任德萱 | C48: 女 | D48: 兴安广播电视台 | E48: 编辑记者（项目人员岗位含大学生退役士兵） | F48: 211522052924 | G48: 蒙古族 | H48: 96 | I48: 96.5 | J48: 64.167 | K48: 2.5 | L48: 66.667 | M48: 2 | N48: 通过
A49: 47 | B49: 张宇 | C49: 女 | D49: 兴安广播电视台 | E49: 编辑记者（项目人员岗位含大学生退役士兵） | F49: 211522052925 | G49: 其他少数民族 | H49: 98.5 | I49: 94 | J49: 64.167 | L49: 64.167 | M49: 3 | N49: 通过
A50: 48 | B50: 闫宇佳 | C50: 女 | D50: 兴安广播电视台 | E50: 编辑记者（项目人员岗位含大学生退役士兵） | F50: 211522052916 | G50: 蒙古族 | H50: 90 | I50: 89 | J50: 59.667 | K50: 2.5 | L50: 62.167 | M50: 4 | N50: 通过
A51: 49 | B51: 马慧 | C51: 女 | D51: 兴安广播电视台 | E51: 编辑记者（项目人员岗位含大学生退役士兵） | F51: 211522052919 | G51: 汉族 | H51: 76.5 | I51: 109.5 | J51: 62.000 | L51: 62.000 | M51: 5 | N51: 通过
A52: 50 | B52: 陈爽 | C52: 女 | D52: 兴安广播电视台 | E52: 编辑记者（项目人员岗位含大学生退役士兵） | F52: 211522052917 | G52: 其他少数民族 | H52: 82.5 | I52: 102 | J52: 61.500 | L52: 61.500 | M52: 6 | N52: 通过
A53: 51 | B53: 董苏楞嘎 | C53: 女 | D53: 兴安广播电视台 | E53: 编辑记者（蒙汉兼通人员岗位） | F53: 211522073820 | G53: 蒙古族 | H53: 66.5 | I53: 99 | J53: 55.167 | K53: 2.5 | L53: 57.667 | M53: 1 | N53: 通过
A54: 52 | B54: 红梅 | C54: 女 | D54: 兴安广播电视台 | E54: 编辑记者（蒙汉兼通人员岗位） | F54: 211522073823 | G54: 蒙古族 | H54: 72.5 | I54: 91.5 | J54: 54.667 | K54: 2.5 | L54: 57.167 | M54: 2 | N54: 通过
A55: 53 | B55: 罗金格 | C55: 女 | D55: 兴安广播电视台 | E55: 编辑记者（蒙汉兼通人员岗位） | F55: 211522073803 | G55: 蒙古族 | H55: 64 | I55: 98 | J55: 54.000 | K55: 2.5 | L55: 56.500 | M55: 4 | N55: 递补通过
A56: 54 | B56: 金艳楠 | C56: 女 | D56: 盟图书馆 | E56: 图书管理员（一般岗位） | F56: 111522015028 | G56: 蒙古族 | H56: 90.5 | I56: 93.5 | J56: 61.333 | K56: 2.5 | L56: 63.833 | M56: 1 | N56: 通过
A57: 55 | B57: 刘思瑞 | C57: 男 | D57: 盟图书馆 | E57: 图书管理员（一般岗位） | F57: 111522015104 | G57: 汉族 | H57: 93 | I57: 92.5 | J57: 61.833 | L57: 61.833 | M57: 2 | N57: 通过
A58: 56 | B58: 韦婉 | C58: 女 | D58: 盟图书馆 | E58: 图书管理员（一般岗位） | F58: 111522015101 | G58: 蒙古族 | H58: 83.5 | I58: 83.5 | J58: 55.667 | K58: 2.5 | L58: 58.167 | M58: 3 | N58: 通过
A59: 57 | B59: 孔凡宇 | C59: 男 | D59: 盟艺术研究所 | E59: 艺术档案整理（项目人员岗位含大学生退役士兵） | F59: 111522015110 | G59: 蒙古族 | H59: 96 | I59: 87.5 | J59: 61.167 | K59: 2.5 | L59: 63.667 | M59: 1 | N59: 通过
A60: 58 | B60: 赵明明 | C60: 男 | D60: 盟艺术研究所 | E60: 艺术档案整理（项目人员岗位含大学生退役士兵） | F60: 111522015112 | G60: 蒙古族 | H60: 102.5 | I60: 78 | J60: 60.167 | K60: 2.5 | L60: 62.667 | M60: 2 | N60: 通过
A61: 59 | B61: 张础绘 | C61: 女 | D61: 盟艺术研究所 | E61: 艺术档案整理（项目人员岗位含大学生退役士兵） | F61: 111522015116 | G61: 汉族 | H61: 85 | I61: 91.5 | J61: 58.833 | L61: 58.833 | M61: 3 | N61: 通过
A62: 60 | B62: 杨雪 | C62: 女 | D62: 盟艺术创编室 | E62: 职员（项目人员岗位含大学生退役士兵） | F62: 111522015125 | G62: 蒙古族 | H62: 94 | I62: 88.5 | J62: 60.833 | K62: 2.5 | L62: 63.333 | M62: 1 | N62: 通过
A63: 61 | B63: 王颖 | C63: 女 | D63: 盟艺术创编室 | E63: 职员（项目人员岗位含大学生退役士兵） | F63: 111522015122 | G63: 汉族 | H63: 88.5 | I63: 91 | J63: 59.833 | L63: 59.833 | M63: 2 | N63: 通过
A64: 62 | B64: 郭金鑫 | C64: 男 | D64: 盟艺术创编室 | E64: 职员（项目人员岗位含大学生退役士兵） | F64: 111522015121 | G64: 汉族 | H64: 92.5 | I64: 84 | J64: 58.833 | L64: 58.833 | M64: 3 | N64: 通过
A65: 63 | B65: 王泽昊 | C65: 男 | D65: 盟微波总站 | E65: 财会（一般岗位） | F65: 111522015201 | G65: 蒙古族 | H65: 83 | I65: 92 | J65: 58.333 | K65: 2.5 | L65: =J65+K65 -> 60.833 | M65: 2 | N65: 通过
A66: 64 | B66: 邰红梅 | C66: 女 | D66: 盟微波总站 | E66: 财会（一般岗位） | F66: 111522015130 | G66: 蒙古族 | H66: 77.5 | I66: 61.5 | J66: 46.333 | K66: 2.5 | L66: =J66+K66 -> 48.833 | M66: 3 | N66: 通过
A67: 65 | B67: 陈泽宇 | C67: 女 | D67: 盟微波总站 | E67: 职员（一般岗位） | F67: 111522015708 | G67: 蒙古族 | H67: 104.5 | I67: 117 | J67: 73.833 | K67: 2.5 | L67: =J67+K67 -> 76.333 | M67: 1 | N67: 通过
A68: 66 | B68: 刘莉彤 | C68: 女 | D68: 盟微波总站 | E68: 职员（一般岗位） | F68: 111522015204 | G68: 蒙古族 | H68: 108 | I68: 91 | J68: 66.333 | K68: 2.5 | L68: 68.833 | M68: 3 | N68: 通过
A69: 67 | B69: 潘晓玉 | C69: 女 | D69: 盟微波总站 | E69: 职员（一般岗位） | F69: 111522015209 | G69: 蒙古族 | H69: 106 | I69: 92 | J69: 66.000 | K69: 2.5 | L69: 68.500 | M69: 4 | N69: 递补通过
A70: 68 | B70: 马赫 | C70: 男 | D70: 盟微波总站 | E70: 技术员2（一般岗位） | F70: 311522050523 | G70: 汉族 | H70: 103 | I70: 99.5 | J70: 67.500 | L70: 67.500 | M70: 1 | N70: 通过
A71: 69 | B71: 律广欣 | C71: 男 | D71: 盟微波总站 | E71: 技术员2（一般岗位） | F71: 311522050525 | G71: 汉族 | H71: 88.6 | I71: 107.5 | J71: 65.367 | L71: 65.367 | M71: 2 | N71: 通过
A72: 70 | B72: 宋砚宇 | C72: 男 | D72: 盟微波总站 | E72: 技术员2（一般岗位） | F72: 311522050520 | G72: 汉族 | H72: 92.7 | I72: 100 | J72: 64.233 | L72: 64.233 | M72: 3 | N72: 通过
A73: 71 | B73: 西峰山 | C73: 男 | D73: 盟微波总站 | E73: 技术员3（蒙汉兼通人员岗位） | F73: 311522062815 | G73: 蒙古族 | H73: 70 | I73: 97.5 | J73: 55.833 | K73: 2.5 | L73: 58.333 | M73: 1 | N73: 通过
A74: 72 | B74: 额尔德木图 | C74: 男 | D74: 盟微波总站 | E74: 技术员3（蒙汉兼通人员岗位） | F74: 311522062816 | G74: 蒙古族 | H74: 76.5 | I74: 83.5 | J74: 53.333 | K74: 2.5 | L74: 55.833 | M74: 2 | N74: 通过
A75: 73 | B75: 赵朝洛蒙 | C75: 男 | D75: 盟微波总站 | E75: 技术员3（蒙汉兼通人员岗位） | F75: 311522062814 | G75: 蒙古族 | H75: 65.9 | I75: 90.5 | J75: 52.133 | K75: 2.5 | L75: 54.633 | M75: 3 | N75: 通过
A76: 74 | B76: 王珏祥 | C76: 男 | D76: 盟关工委 | E76: 文秘（一般岗位） | F76: 111522020403 | G76: 汉族 | H76: 85.5 | I76: 95.5 | J76: 60.333 | L76: 60.333 | M76: 1 | N76: 通过
A77: 75 | B77: 崔海弦 | C77: 女 | D77: 盟关工委 | E77: 文秘（一般岗位） | F77: 111522020317 | G77: 汉族 | H77: 86.5 | I77: 90 | J77: 58.833 | L77: 58.833 | M77: 2 | N77: 通过
A78: 76 | B78: 尹雪华 | C78: 女 | D78: 盟关工委 | E78: 文秘（一般岗位） | F78: 111522020320 | G78: 蒙古族 | H78: 83.5 | I78: 85.5 | J78: 56.333 | K78: 2.5 | L78: 58.833 | M78: 3 | N78: 通过
A79: 77 | B79: 林田 | C79: 女 | D79: 盟红十字会备灾救灾培训中心 | E79: 职员（一般岗位） | F79: 111522020422 | G79: 汉族 | H79: 104.5 | I79: 104.5 | J79: 69.667 | L79: 69.667 | M79: 1 | N79: 通过
A80: 78 | B80: 王文博 | C80: 男 | D80: 盟红十字会备灾救灾培训中心 | E80: 职员（一般岗位） | F80: 111522020426 | G80: 其他少数民族 | H80: 97 | I80: 92.5 | J80: 63.167 | L80: 63.167 | M80: 2 | N80: 通过
A81: 79 | B81: 张鹤 | C81: 女 | D81: 盟红十字会备灾救灾培训中心 | E81: 职员（一般岗位） | F81: 111522020414 | G81: 汉族 | H81: 88.5 | I81: 98 | J81: 62.167 | L81: 62.167 | M81: 4 | N81: 递补通过
A82: 80 | B82: 王坤 | C82: 女 | D82: 兴安盟住房公积金管理中心科右中旗管理部 | E82: 财会（一般岗位） | F82: 111522010106 | G82: 蒙古族 | H82: 80.5 | I82: 81.5 | J82: 54.000 | K82: 2.5 | L82: 56.500 | M82: 2 | N82: 通过
A83: 81 | B83: 苏日娜 | C83: 女 | D83: 兴安盟住房公积金管理中心科右中旗管理部 | E83: 财会（一般岗位） | F83: 111522010108 | G83: 蒙古族 | H83: 87 | I83: 68.5 | J83: 51.833 | K83: 2.5 | L83: 54.333 | M83: 3 | N83: 通过
A84: 82 | B84: 赵璐琪 | C84: 女 | D84: 兴安盟住房公积金管理中心科右中旗管理部 | E84: 财会（一般岗位） | F84: 111522010114 | G84: 蒙古族 | H84: 67.5 | I84: 79.5 | J84: 49.000 | K84: 2.5 | L84: 51.500 | M84: 4 | N84: 递补通过
A85: 83 | B85: 马欣欣 | C85: 男 | D85: 兴安盟住房公积金管理中心科右中旗管理部 | E85: 电子信息（一般岗位） | F85: 111522010201 | G85: 蒙古族 | H85: 98.5 | I85: 79 | J85: 59.167 | K85: 2.5 | L85: 61.667 | M85: 1 | N85: 通过
A86: 84 | B86: 陈冉 | C86: 女 | D86: 兴安盟住房公积金管理中心科右中旗管理部 | E86: 电子信息（一般岗位） | F86: 111522010130 | G86: 蒙古族 | H86: 99 | I86: 76 | J86: 58.333 | K86: 2.5 | L86: 60.833 | M86: 2 | N86: 通过
A87: 85 | B87: 陈海林 | C87: 男 | D87: 兴安盟住房公积金管理中心科右中旗管理部 | E87: 电子信息（一般岗位） | F87: 111522073002 | G87: 蒙古族 | H87: 86.5 | I87: 80 | J87: 55.500 | K87: 2.5 | L87: 58.000 | M87: 3 | N87: 通过
A88: 86 | B88: 王英安 | C88: 男 | D88: 兴安盟住房公积金管理中心科右中旗管理部 | E88: 计算机技术（蒙汉兼通人员岗位） | F88: 111522064006 | G88: 蒙古族 | H88: 66.5 | I88: 64 | J88: 43.500 | K88: 2.5 | L88: 46.000 | M88: 1 | N88: 通过
A89: 87 | B89: 赵格根哈斯 | C89: 女 | D89: 兴安盟住房公积金管理中心科右中旗管理部 | E89: 计算机技术（蒙汉兼通人员岗位） | F89: 111522064016 | G89: 蒙古族 | H89: 51 | I89: 73 | J89: 41.333 | K89: 2.5 | L89: 43.833 | M89: 2 | N89: 通过
A90: 88 | B90: 邰阳 | C90: 男 | D90: 兴安盟住房公积金管理中心科右中旗管理部 | E90: 计算机技术（蒙汉兼通人员岗位） | F90: 111522064017 | G90: 蒙古族 | H90: 63 | I90: 61 | J90: 41.333 | K90: 2.5 | L90: 43.833 | M90: 3 | N90: 通过
A91: 89 | B91: 谢永祥 | C91: 男 | D91: 兴安盟住房公积金管理中心扎赉特旗管理部 | E91: 财会（一般岗位） | F91: 111522010208 | G91: 蒙古族 | H91: 84.5 | I91: 73.5 | J91: 52.667 | K91: 2.5 | L91: 55.167 | M91: 1 | N91: 通过
A92: 90 | B92: 吴丽丽 | C92: 女 | D92: 兴安盟住房公积金管理中心扎赉特旗管理部 | E92: 财会（一般岗位） | F92: 111522010213 | G92: 蒙古族 | H92: 82.5 | I92: 62.5 | J92: 48.333 | K92: 2.5 | L92: 50.833 | M92: 2 | N92: 通过
A93: 91 | B93: 黄慧敏 | C93: 女 | D93: 兴安盟住房公积金管理中心扎赉特旗管理部 | E93: 财会（一般岗位） | F93: 111522010207 | G93: 汉族 | H93: 78 | I93: 67 | J93: 48.333 | L93: 48.333 | M93: 3 | N93: 通过
A94: 92 | B94: 朱六十一 | C94: 男 | D94: 兴安盟住房公积金管理中心扎赉特旗管理部 | E94: 财会（蒙汉兼通人员岗位） | F94: 111522064018 | G94: 蒙古族 | H94: 56 | I94: 72.5 | J94: 42.833 | K94: 2.5 | L94: =J94+K94 -> 45.333 | M94: 1 | N94: 通过
A95: 93 | B95: 马海霞 | C95: 女 | D95: 兴安盟住房公积金管理中心扎赉特旗管理部 | E95: 财会（蒙汉兼通人员岗位） | F95: 111522064020 | G95: 蒙古族 | H95: 51 | I95: 71 | J95: 40.667 | K95: 2.5 | L95: =J95+K95 -> 43.167 | M95: 2 | N95: 通过
A96: 94 | B96: 包平 | C96: 男 | D96: 兴安盟住房公积金管理中心扎赉特旗管理部 | E96: 财会（蒙汉兼通人员岗位） | F96: 111522064019 | G96: 蒙古族 | H96: 43.5 | I96: 66.5 | J96: 36.667 | K96: 2.5 | L96: =J96+K96 -> 39.167 | M96: 3 | N96: 通过
A97: 95 | B97: 刘建 | C97: 男 | D97: 兴安盟住房公积金管理中心扎赉特旗管理部 | E97: 计算机技术（一般岗位） | F97: 111522010316 | G97: 汉族 | H97: 99.5 | I97: 97 | J97: 65.500 | L97: =J97+K97 -> 65.500 | M97: 1 | N97: 通过
A98: 96 | B98: 邹宇健 | C98: 男 | D98: 兴安盟住房公积金管理中心扎赉特旗管理部 | E98: 计算机技术（一般岗位） | F98: 111522010408 | G98: 汉族 | H98: 93.5 | I98: 93 | J98: 62.167 | L98: 62.167 | M98: 2 | N98: 通过
A99: 97 | B99: 陈志华 | C99: 女 | D99: 兴安盟住房公积金管理中心扎赉特旗管理部 | E99: 计算机技术（一般岗位） | F99: 111522010330 | G99: 蒙古族 | H99: 90.5 | I99: 87.5 | J99: 59.333 | K99: 2.5 | L99: 61.833 | M99: 3 | N99: 通过
A100: 98 | B100: 梅凌雪 | C100: 女 | D100: 兴安盟住房公积金管理中心扎赉特旗管理部 | E100: 计算机技术（项目人员岗位含大学生退役士兵） | F100: 111522010418 | G100: 汉族 | H100: 106 | I100: 80.5 | J100: 62.167 | L100: 62.167 | M100: 1 | N100: 通过
A101: 99 | B101: 程晓光 | C101: 女 | D101: 兴安盟住房公积金管理中心扎赉特旗管理部 | E101: 计算机技术（项目人员岗位含大学生退役士兵） | F101: 111522010411 | G101: 其他少数民族 | H101: 78 | I101: 87 | J101: 55.000 | L101: 55.000 | M101: 3 | N101: 通过
A102: 100 | B102: 包伟东 | C102: 男 | D102: 兴安盟住房公积金管理中心扎赉特旗管理部 | E102: 计算机技术（项目人员岗位含大学生退役士兵） | F102: 111522010413 | G102: 蒙古族 | H102: 95 | I102: 51.5 | J102: 48.833 | K102: 2.5 | L102: 51.333 | M102: 4 | N102: 递补通过
A103: 101 | B103: 吕航 | C103: 女 | D103: 兴安盟住房公积金管理中心突泉管理部 | E103: 财会（一般岗位） | F103: 111522010421 | G103: 蒙古族 | H103: 79 | I103: 60.5 | J103: 46.500 | K103: 2.5 | L103: 49.000 | M103: 2 | N103: 通过
A104: 102 | B104: 柳玉璐 | C104: 女 | D104: 兴安盟住房公积金管理中心突泉管理部 | E104: 财会（一般岗位） | F104: 111522010422 | G104: 蒙古族 | H104: 68 | I104: 70 | J104: 46.000 | K104: 2.5 | L104: 48.500 | M104: 3 | N104: 通过
A105: 103 | B105: 刘蔚轩 | C105: 女 | D105: 兴安盟住房公积金管理中心突泉管理部 | E105: 财会（一般岗位） | F105: 111522010425 | G105: 汉族 | H105: 70 | I105: 55.5 | J105: 41.833 | L105: 41.833 | M105: 4 | N105: 通过
A106: 104 | B106: 辛丽佳 | C106: 女 | D106: 兴安盟住房公积金管理中心突泉管理部 | E106: 财会（一般岗位） | F106: 111522010426 | G106: 蒙古族 | H106: 49 | I106: 66.5 | J106: 38.500 | K106: 2.5 | L106: 41.000 | M106: 6 | N106: 通过
A107: 105 | B107: 王明 | C107: 男 | D107: 兴安盟住房公积金管理中心突泉管理部 | E107: 计算机技术（一般岗位） | F107: 111522010504 | G107: 蒙古族 | H107: 104.5 | I107: 69 | J107: 57.833 | K107: 2.5 | L107: 60.333 | M107: 1 | N107: 通过
A108: 106 | B108: 王石磊 | C108: 男 | D108: 兴安盟住房公积金管理中心突泉管理部 | E108: 计算机技术（一般岗位） | F108: 111522010508 | G108: 汉族 | H108: 88.5 | I108: 90.5 | J108: 59.667 | L108: 59.667 | M108: 2 | N108: 通过
A109: 107 | B109: 白洋 | C109: 女 | D109: 兴安盟住房公积金管理中心突泉管理部 | E109: 计算机技术（一般岗位） | F109: 111522010502 | G109: 蒙古族 | H109: 88.5 | I109: 80.5 | J109: 56.333 | K109: 2.5 | L109: 58.833 | M109: 3 | N109: 通过
A110: 108 | B110: 管琳娜 | C110: 女 | D110: 兴安盟住房公积金管理中心阿尔山管理部 | E110: 财会（一般岗位） | F110: 111522010514 | G110: 汉族 | H110: 87.5 | I110: 85.5 | J110: 57.667 | L110: 57.667 | M110: 1 | N110: 通过
A111: 109 | B111: 王轩 | C111: 男 | D111: 兴安盟住房公积金管理中心阿尔山管理部 | E111: 财会（一般岗位） | F111: 111522010515 | G111: 汉族 | H111: 81.5 | I111: 78 | J111: 53.167 | L111: 53.167 | M111: 2 | N111: 通过
A112: 110 | B112: 王天贺 | C112: 女 | D112: 兴安盟住房公积金管理中心阿尔山管理部 | E112: 财会（一般岗位） | F112: 111522010521 | G112: 汉族 | H112: 81.5 | I112: 75.5 | J112: 52.333 | L112: 52.333 | M112: 3 | N112: 通过
A113: 111 | B113: 李炎桐 | C113: 女 | D113: 兴安盟住房公积金管理中心阿尔山管理部 | E113: 财会（一般岗位） | F113: 111522010517 | G113: 汉族 | H113: 84 | I113: 69 | J113: 51.000 | L113: 51.000 | M113: 5 | N113: 通过
A114: 112 | B114: 赵旭丹 | C114: 女 | D114: 兴安盟住房公积金管理中心阿尔山管理部 | E114: 财会（一般岗位） | F114: 111522010518 | G114: 汉族 | H114: 67.5 | I114: 81 | J114: 49.500 | L114: 49.500 | M114: 6 | N114: 通过
A115: 113 | B115: 董妍妍 | C115: 女 | D115: 兴安盟住房公积金管理中心阿尔山管理部 | E115: 财会（一般岗位） | F115: 111522010520 | G115: 汉族 | H115: 67 | I115: 73.5 | J115: 46.833 | L115: 46.833 | M115: 7 | N115: 递补通过
A116: 114 | B116: 张媛媛 | C116: 女 | D116: 兴安盟住房公积金管理中心阿尔山管理部 | E116: 计算机技术（一般岗位） | F116: 111522010602 | G116: 汉族 | H116: 87.5 | I116: 103 | J116: 63.500 | L116: 63.500 | M116: 1 | N116: 通过
A117: 115 | B117: 吴琪 | C117: 女 | D117: 兴安盟住房公积金管理中心阿尔山管理部 | E117: 计算机技术（一般岗位） | F117: 111522010528 | G117: 其他少数民族 | H117: 102.5 | I117: 81.5 | J117: 61.333 | L117: 61.333 | M117: 2 | N117: 通过
A118: 116 | B118: 王恒 | C118: 男 | D118: 兴安盟住房公积金管理中心阿尔山管理部 | E118: 计算机技术（一般岗位） | F118: 111522010530 | G118: 蒙古族 | H118: 85.5 | I118: 78.5 | J118: 54.667 | K118: 2.5 | L118: 57.167 | M118: 3 | N118: 通过
A119: 117 | B119: 李影 | C119: 女 | D119: 兴安盟住房公积金管理中心 | E119: 文秘（一般岗位） | F119: 111522010611 | G119: 汉族 | H119: 82.5 | I119: 96.5 | J119: 59.667 | L119: 59.667 | M119: 1 | N119: 通过
A120: 118 | B120: 陈明蕾 | C120: 女 | D120: 兴安盟住房公积金管理中心 | E120: 文秘（一般岗位） | F120: 111522010614 | G120: 蒙古族 | H120: 96 | I120: 73 | J120: 56.333 | K120: 2.5 | L120: 58.833 | M120: 2 | N120: 通过
A121: 119 | B121: 孟乌日尼勤 | C121: 女 | D121: 兴安盟住房公积金管理中心 | E121: 文秘（一般岗位） | F121: 111522010610 | G121: 蒙古族 | H121: 87.5 | I121: 81 | J121: 56.167 | K121: 2.5 | L121: 58.667 | M121: 3 | N121: 通过
A122: 120 | B122: 牛诗瑶 | C122: 女 | D122: 兴安盟住房公积金管理中心 | E122: 计算机技术（一般岗位） | F122: 111522010630 | G122: 蒙古族 | H122: 105.5 | I122: 83 | J122: 62.833 | K122: 2.5 | L122: 65.333 | M122: 1 | N122: 通过
A123: 121 | B123: 杨金明 | C123: 男 | D123: 兴安盟住房公积金管理中心 | E123: 计算机技术（一般岗位） | F123: 111522010624 | G123: 汉族 | H123: 92 | I123: 89 | J123: 60.333 | L123: 60.333 | M123: 2 | N123: 通过
A124: 122 | B124: 王艳玲 | C124: 女 | D124: 兴安盟住房公积金管理中心 | E124: 计算机技术（一般岗位） | F124: 111522010620 | G124: 汉族 | H124: 84.5 | I124: 94 | J124: 59.500 | L124: 59.500 | M124: 3 | N124: 通过
A125: 123 | B125: 马雪健 | C125: 女 | D125: 兴安盟水利规划研究院 | E125: 农业水利（一般岗位） | F125: 311522050102 | G125: 蒙古族 | H125: 87.7 | I125: 92.5 | J125: 60.067 | K125: 2.5 | L125: =J125+K125 -> 62.567 | M125: 1 | N125: 通过
A126: 124 | B126: 周旭阳 | C126: 男 | D126: 兴安盟水利规划研究院 | E126: 农业水利（一般岗位） | F126: 311522050103 | G126: 其他少数民族 | H126: 85.4 | I126: 99 | J126: 61.467 | L126: =J126+K126 -> 61.467 | M126: 3 | N126: 通过
A127: 125 | B127: 孟繁奇 | C127: 男 | D127: 兴安盟水利规划研究院 | E127: 工程管理（一般岗位） | F127: 311522050123 | G127: 蒙古族 | H127: 110 | I127: 109 | J127: 73.000 | K127: 2.5 | L127: =J127+K127 -> 75.500 | M127: 1 | N127: 通过
A128: 126 | B128: 沈赫 | C128: 男 | D128: 兴安盟水利规划研究院 | E128: 工程管理（一般岗位） | F128: 311522050111 | G128: 蒙古族 | H128: 101.2 | I128: 99.5 | J128: 66.900 | K128: 2.5 | L128: 69.400 | M128: 2 | N128: 通过
A129: 127 | B129: 刘孟冬 | C129: 女 | D129: 兴安盟水利规划研究院 | E129: 工程管理（一般岗位） | F129: 311522050108 | G129: 其他少数民族 | H129: 106.5 | I129: 94.5 | J129: 67.000 | L129: 67.000 | M129: 4 | N129: 递补通过
A130: 128 | B130: 谭龙 | C130: 男 | D130: 兴安盟水利灌溉管理站 | E130: 水利工程（一般岗位） | F130: 311522050127 | G130: 汉族 | H130: 95.3 | I130: 96.5 | J130: 63.933 | L130: 63.933 | M130: 1 | N130: 通过
A131: 129 | B131: 徐文龙 | C131: 男 | D131: 兴安盟水利灌溉管理站 | E131: 水利工程（一般岗位） | F131: 311522050126 | G131: 汉族 | H131: 88.6 | I131: 102.5 | J131: 63.700 | L131: 63.700 | M131: 2 | N131: 通过
A132: 130 | B132: 洪龙生 | C132: 男 | D132: 兴安盟水利灌溉管理站 | E132: 水利工程（一般岗位） | F132: 311522050124 | G132: 汉族 | H132: 86 | I132: 97.5 | J132: 61.167 | L132: 61.167 | M132: 3 | N132: 通过
A133: 131 | B133: 田敏 | C133: 女 | D133: 兴安盟水利灌溉管理站 | E133: 灌溉工程管理（一般岗位） | F133: 311522050130 | G133: 汉族 | H133: 105.3 | I133: 105 | J133: 70.100 | L133: 70.100 | M133: 1 | N133: 通过
A134: 132 | B134: 于小龙 | C134: 男 | D134: 兴安盟水利灌溉管理站 | E134: 灌溉工程管理（一般岗位） | F134: 311522050208 | G134: 汉族 | H134: 99.2 | I134: 107.5 | J134: 68.900 | L134: 68.900 | M134: 2 | N134: 通过
A135: 133 | B135: 田铭迪 | C135: 男 | D135: 兴安盟水利灌溉管理站 | E135: 灌溉工程管理（一般岗位） | F135: 311522050209 | G135: 蒙古族 | H135: 98.7 | I135: 88 | J135: 62.233 | K135: 2.5 | L135: 64.733 | M135: 5 | N135: 递补通过
A136: 134 | B136: 吴宏明 | C136: 男 | D136: 兴安盟天然林保护管理局 | E136: 林业经济管理（一般岗位） | F136: 111522010710 | G136: 蒙古族 | H136: 94.5 | I136: 78 | J136: 57.500 | K136: 2.5 | L136: 60.000 | M136: 1 | N136: 通过
A137: 135 | B137: 安丽丽 | C137: 女 | D137: 兴安盟天然林保护管理局 | E137: 林业经济管理（一般岗位） | F137: 111522073009 | G137: 蒙古族 | H137: 83.5 | I137: 87.5 | J137: 57.000 | K137: 2.5 | L137: 59.500 | M137: 2 | N137: 通过
A138: 136 | B138: 张珊珊 | C138: 女 | D138: 兴安盟天然林保护管理局 | E138: 林业经济管理（一般岗位） | F138: 111522010720 | G138: 汉族 | H138: 98 | I138: 79.5 | J138: 59.167 | L138: 59.167 | M138: 3 | N138: 通过
A139: 137 | B139: 高雪 | C139: 女 | D139: 兴安盟天然林保护管理局 | E139: 天然林保护工程（一般岗位） | F139: 311522050318 | G139: 蒙古族 | H139: 98.9 | I139: 91.5 | J139: 63.467 | K139: 2.5 | L139: 65.967 | M139: 1 | N139: 通过
A140: 138 | B140: 王文静 | C140: 女 | D140: 兴安盟天然林保护管理局 | E140: 天然林保护工程（一般岗位） | F140: 311522050308 | G140: 蒙古族 | H140: 89.8 | I140: 98.5 | J140: 62.767 | K140: 2.5 | L140: 65.267 | M140: 2 | N140: 通过
A141: 139 | B141: 马慧 | C141: 女 | D141: 兴安盟天然林保护管理局 | E141: 天然林保护工程（一般岗位） | F141: 311522050228 | G141: 汉族 | H141: 101.7 | I141: 90.5 | J141: 64.067 | L141: 64.067 | M141: 3 | N141: 通过
A142: 140 | B142: 白立阁 | C142: 男 | D142: 兴安盟公路管理局第十工区 | E142: 文秘（一般岗位） | F142: 111522010728 | G142: 蒙古族 | H142: 99.5 | I142: 91.5 | J142: 63.667 | K142: 2.5 | L142: 66.167 | M142: 1 | N142: 通过
A143: 141 | B143: 王欢 | C143: 女 | D143: 兴安盟公路管理局第十工区 | E143: 文秘（一般岗位） | F143: 111522010722 | G143: 汉族 | H143: 98 | I143: 78.5 | J143: 58.833 | L143: 58.833 | M143: 2 | N143: 通过
A144: 142 | B144: 李馨培 | C144: 女 | D144: 兴安盟公路管理局第十工区 | E144: 文秘（一般岗位） | F144: 111522010724 | G144: 蒙古族 | H144: 89.5 | I144: 72.5 | J144: 54.000 | K144: 2.5 | L144: 56.500 | M144: 3 | N144: 通过
A145: 143 | B145: 吴伏雨 | C145: 男 | D145: 兴安盟公路管理局第十工区 | E145: 公路工程管理（一般岗位） | F145: 311522050326 | G145: 蒙古族 | H145: 88.7 | I145: 108.5 | J145: 65.733 | K145: 2.5 | L145: 68.233 | M145: 2 | N145: 通过
A146: 144 | B146: 李亚东 | C146: 男 | D146: 兴安盟公路管理局第十工区 | E146: 公路工程管理（一般岗位） | F146: 311522050403 | G146: 蒙古族 | H146: 69.9 | I146: 97 | J146: 55.633 | K146: 2.5 | L146: 58.133 | M146: 3 | N146: 通过
A147: 145 | B147: 韩子龙 | C147: 男 | D147: 兴安盟公路管理局第十工区 | E147: 公路工程管理（一般岗位） | F147: 311522050329 | G147: 蒙古族 | H147: 76.2 | I147: 82.5 | J147: 52.900 | K147: 2.5 | L147: 55.400 | M147: 4 | N147: 通过
A148: 146 | B148: 陈飞 | C148: 男 | D148: 兴安盟公路管理局第十工区 | E148: 公路工程管理（一般岗位） | F148: 311522050404 | G148: 蒙古族 | H148: 76.8 | I148: 81 | J148: 52.600 | K148: 2.5 | L148: 55.100 | M148: 5 | N148: 通过
A149: 147 | B149: 韩志文 | C149: 男 | D149: 兴安盟公路管理局第十工区 | E149: 公路工程管理（一般岗位） | F149: 311522050401 | G149: 蒙古族 | H149: 67.9 | I149: 72 | J149: 46.633 | K149: 2.5 | L149: 49.133 | M149: 7 | N149: 递补通过
A150: 148 | B150: 那日松 | C150: 男 | D150: 兴安盟公路管理局第十工区 | E150: 公路工程管理（蒙汉兼通人员岗位） | F150: 311522062813 | G150: 蒙古族 | H150: 70.3 | I150: 96.5 | J150: 55.600 | K150: 2.5 | L150: 58.100 | M150: 1 | N150: 通过
A151: 149 | B151: 宁海日瀚 | C151: 男 | D151: 兴安盟公路管理局第十工区 | E151: 公路工程管理（蒙汉兼通人员岗位） | F151: 311522062804 | G151: 蒙古族 | H151: 67.3 | I151: 88.5 | J151: 51.933 | K151: 2.5 | L151: 54.433 | M151: 2 | N151: 通过
A152: 150 | B152: 斌斌 | C152: 男 | D152: 兴安盟公路管理局第十工区 | E152: 公路工程管理（蒙汉兼通人员岗位） | F152: 311522062812 | G152: 蒙古族 | H152: 65.6 | I152: 88.5 | J152: 51.367 | K152: 2.5 | L152: 53.867 | M152: 3 | N152: 通过
A153: 151 | B153: 刘云哲 | C153: 男 | D153: 兴安盟公路管理局第十一工区 | E153: 公路工程管理（一般岗位） | F153: 311522050411 | G153: 蒙古族 | H153: 95.4 | I153: 100 | J153: 65.133 | K153: 2.5 | L153: 67.633 | M153: 1 | N153: 通过
A154: 152 | B154: 郑天一 | C154: 男 | D154: 兴安盟公路管理局第十一工区 | E154: 公路工程管理（一般岗位） | F154: 311522050409 | G154: 汉族 | H154: 99.5 | I154: 91.5 | J154: 63.667 | L154: 63.667 | M154: 2 | N154: 通过
A155: 153 | B155: 金建行 | C155: 男 | D155: 兴安盟公路管理局第十一工区 | E155: 公路工程管理（一般岗位） | F155: 311522050407 | G155: 蒙古族 | H155: 74.4 | I155: 86.5 | J155: 53.633 | K155: 2.5 | L155: 56.133 | M155: 3 | N155: 通过
A156: 154 | B156: 陈文斌 | C156: 男 | D156: 兴安盟公路管理局第十二工区 | E156: 公路工程管理（一般岗位） | F156: 311522050416 | G156: 蒙古族 | H156: 96.5 | I156: 105 | J156: 67.167 | K156: 2.5 | L156: 69.667 | M156: 1 | N156: 通过
A157: 155 | B157: 罗振东 | C157: 男 | D157: 兴安盟公路管理局第十二工区 | E157: 公路工程管理（一般岗位） | F157: 311522050418 | G157: 汉族 | H157: 93.6 | I157: 97.5 | J157: 63.700 | L157: 63.700 | M157: 2 | N157: 通过
A158: 156 | B158: 刘彤 | C158: 男 | D158: 兴安盟公路管理局第十二工区 | E158: 公路工程管理（一般岗位） | F158: 311522050417 | G158: 汉族 | H158: 94.7 | I158: 94 | J158: 62.900 | L158: 62.900 | M158: 3 | N158: 通过
A159: 157 | B159: 初秀敏 | C159: 女 | D159: 兴安盟妇幼保健院 | E159: 西医临床（一般岗位） | F159: 521522060104 | G159: 汉族 | H159: 86.5 | I159: 83 | J159: 56.500 | L159: 56.500 | M159: 3 | N159: 通过
A160: 158 | B160: 赵婧文 | C160: 女 | D160: 兴安盟妇幼保健院 | E160: 西医临床（一般岗位） | F160: 521522060107 | G160: 汉族 | H160: 69.5 | I160: 68.2 | J160: 45.900 | L160: 45.900 | M160: 4 | N160: 通过
A161: 159 | B161: 孙梅春 | C161: 女 | D161: 兴安盟妇幼保健院 | E161: 西医临床（一般岗位） | F161: 521522060101 | G161: 蒙古族 | H161: 53 | I161: 70.1 | J161: 41.033 | K161: 2.5 | L161: 43.533 | M161: 5 | N161: 通过
A162: 160 | B162: 余文静 | C162: 女 | D162: 兴安盟妇幼保健院 | E162: 护理（一般岗位） | F162: 541522060906 | G162: 汉族 | H162: 83.5 | I162: 80.9 | J162: 54.800 | L162: 54.800 | M162: 1 | N162: 通过
A163: 161 | B163: 朱佳男 | C163: 女 | D163: 兴安盟妇幼保健院 | E163: 护理（一般岗位） | F163: 541522060903 | G163: 汉族 | H163: 83.5 | I163: 73.4 | J163: 52.300 | L163: 52.300 | M163: 3 | N163: 通过
A164: 162 | B164: 钟娜 | C164: 女 | D164: 兴安盟妇幼保健院 | E164: 护理（一般岗位） | F164: 541522060905 | G164: 汉族 | H164: 54 | I164: 66.4 | J164: 40.133 | L164: 40.133 | M164: 6 | N164: 递补通过
A165: 163 | B165: 崔理想 | C165: 女 | D165: 兴安盟计划生育卫生和计划生育考务中心 | E165: 临床（一般岗位） | F165: 521522060113 | G165: 蒙古族 | H165: 79.5 | I165: 97.7 | J165: 59.067 | K165: 2.5 | L165: 61.567 | M165: 1 | N165: 通过
A166: 164 | B166: 于铭 | C166: 女 | D166: 兴安盟计划生育卫生和计划生育考务中心 | E166: 临床（一般岗位） | F166: 521522060110 | G166: 其他少数民族 | H166: 70.5 | I166: 77.2 | J166: 49.233 | L166: =J166+K166 -> 49.233 | M166: 4 | N166: 递补通过
A167: 165 | B167: 白梅玲 | C167: 女 | D167: 兴安盟计划生育卫生和计划生育考务中心 | E167: 临床（一般岗位） | F167: 521522060112 | G167: 蒙古族 | H167: 56.5 | I167: 70.5 | J167: 42.333 | K167: 2.5 | L167: =J167+K167 -> 44.833 | M167: 5 | N167: 递补通过
A168: 166 | B168: 张悦 | C168: 女 | D168: 兴安盟计划生育卫生和计划生育考务中心 | E168: 计算机技术（一般岗位） | F168: 111522010801 | G168: 汉族 | H168: 102.5 | I168: 93 | J168: 65.167 | L168: 65.167 | M168: 1 | N168: 通过
A169: 167 | B169: 范冲 | C169: 女 | D169: 兴安盟计划生育卫生和计划生育考务中心 | E169: 计算机技术（一般岗位） | F169: 111522010805 | G169: 汉族 | H169: 103.5 | I169: 86.5 | J169: 63.333 | L169: 63.333 | M169: 2 | N169: 通过
A170: 168 | B170: 伏强 | C170: 男 | D170: 兴安盟计划生育卫生和计划生育考务中心 | E170: 计算机技术（一般岗位） | F170: 111522010813 | G170: 汉族 | H170: 109 | I170: 74.5 | J170: 61.167 | L170: 61.167 | M170: 5 | N170: 递补通过
A171: 169 | B171: 姚丽红 | C171: 女 | D171: 兴安盟计划生育卫生和计划生育考务中心 | E171: 药学（一般岗位） | F171: 531522060604 | G171: 汉族 | H171: 81.5 | I171: 85.8 | J171: 55.767 | L171: 55.767 | M171: 1 | N171: 通过
A172: 170 | B172: 马大龙 | C172: 男 | D172: 兴安盟计划生育卫生和计划生育考务中心 | E172: 药学（一般岗位） | F172: 531522060603 | G172: 汉族 | H172: 86.5 | I172: 71.7 | J172: 52.733 | L172: 52.733 | M172: 2 | N172: 通过
A173: 171 | B173: 顾赫 | C173: 男 | D173: 兴安盟计划生育后勤服务中心 | E173: 财会（一般岗位） | F173: 111522010817 | G173: 其他少数民族 | H173: 91 | I173: 84.5 | J173: 58.500 | L173: 58.500 | M173: 1 | N173: 通过
A174: 172 | B174: 张铭芳 | C174: 女 | D174: 兴安盟计划生育后勤服务中心 | E174: 财会（一般岗位） | F174: 111522010820 | G174: 蒙古族 | H174: 74 | I174: 88 | J174: 54.000 | K174: 2.5 | L174: 56.500 | M174: 2 | N174: 通过
A175: 173 | B175: 徐晶 | C175: 女 | D175: 兴安盟计划生育后勤服务中心 | E175: 财会（一般岗位） | F175: 111522010819 | G175: 蒙古族 | H175: 83.5 | I175: 70 | J175: 51.167 | K175: 2.5 | L175: 53.667 | M175: 4 | N175: 递补通过
A176: 174 | B176: 孝莹 | C176: 女 | D176: 兴安盟计划生育后勤服务中心 | E176: 计算机技术（项目人员岗位含大学生退役士兵） | F176: 111522010822 | G176: 蒙古族 | H176: 91 | I176: 95 | J176: 62.000 | K176: 2.5 | L176: 64.500 | M176: 1 | N176: 通过
A177: 175 | B177: 广元 | C177: 女 | D177: 兴安盟计划生育后勤服务中心 | E177: 计算机技术（项目人员岗位含大学生退役士兵） | F177: 111522010901 | G177: 蒙古族 | H177: 81.5 | I177: 97.5 | J177: 59.667 | K177: 2.5 | L177: 62.167 | M177: 2 | N177: 通过
A178: 176 | B178: 田润泽 | C178: 男 | D178: 兴安盟计划生育后勤服务中心 | E178: 计算机技术（项目人员岗位含大学生退役士兵） | F178: 111522010825 | G178: 汉族 | H178: 95.5 | I178: 77.5 | J178: 57.667 | L178: 57.667 | M178: 3 | N178: 通过
A179: 177 | B179: 崔建楠 | C179: 女 | D179: 兴安盟疾病预防控制中心 | E179: 检验技术（一般岗位） | F179: 551522062103 | G179: 汉族 | H179: 98 | I179: 64 | J179: 54.000 | L179: 54.000 | M179: 1 | N179: 通过
A180: 178 | B180: 柳杨 | C180: 女 | D180: 兴安盟疾病预防控制中心 | E180: 检验技术（一般岗位） | F180: 551522062106 | G180: 汉族 | H180: 78 | I180: 67.6 | J180: 48.533 | L180: 48.533 | M180: 2 | N180: 通过
A181: 179 | B181: 李成霞 | C181: 女 | D181: 兴安盟疾病预防控制中心 | E181: 检验技术（一般岗位） | F181: 551522062105 | G181: 汉族 | H181: 65 | I181: 77.2 | J181: 47.400 | L181: 47.400 | M181: 3 | N181: 通过
A182: 180 | B182: 赵兴宇 | C182: 男 | D182: 兴安盟内部审计管理中心 | E182: 审计（1）（一般岗位） | F182: 111522010915 | G182: 蒙古族 | H182: 106.5 | I182: 98.5 | J182: 68.333 | K182: 2.5 | L182: 70.833 | M182: 1 | N182: 通过
A183: 181 | B183: 任一鸣 | C183: 男 | D183: 兴安盟内部审计管理中心 | E183: 审计（1）（一般岗位） | F183: 111522010920 | G183: 蒙古族 | H183: 93 | I183: 93 | J183: 62.000 | K183: 2.5 | L183: 64.500 | M183: 2 | N183: 通过
A184: 182 | B184: 刘静 | C184: 女 | D184: 兴安盟内部审计管理中心 | E184: 审计（1）（一般岗位） | F184: 111522010923 | G184: 汉族 | H184: 100.5 | I184: 85 | J184: 61.833 | L184: 61.833 | M184: 3 | N184: 通过
A185: 183 | B185: 白波 | C185: 女 | D185: 兴安盟内部审计管理中心 | E185: 审计（2）（一般岗位） | F185: 111522011002 | G185: 蒙古族 | H185: 96 | I185: 96.5 | J185: 64.167 | K185: 2.5 | L185: 66.667 | M185: 1 | N185: 通过
A186: 184 | B186: 汤阁瑾 | C186: 女 | D186: 兴安盟内部审计管理中心 | E186: 审计（2）（一般岗位） | F186: 111522010930 | G186: 其他少数民族 | H186: 103 | I186: 83 | J186: 62.000 | L186: 62.000 | M186: 3 | N186: 通过
A187: 185 | B187: 陈阳 | C187: 女 | D187: 兴安盟内部审计管理中心 | E187: 审计（2）（一般岗位） | F187: 111522011004 | G187: 蒙古族 | H187: 77.5 | I187: 95 | J187: 57.500 | K187: 2.5 | L187: 60.000 | M187: 5 | N187: 递补通过
A188: 186 | B188: 王浩 | C188: 男 | D188: 兴安盟内部审计管理中心 | E188: 审计（3）（一般岗位） | F188: 111522011022 | G188: 汉族 | H188: 113 | I188: 75 | J188: 62.667 | L188: 62.667 | M188: 1 | N188: 通过
A189: 187 | B189: 姜兆惠 | C189: 女 | D189: 兴安盟内部审计管理中心 | E189: 审计（3）（一般岗位） | F189: 111522011018 | G189: 汉族 | H189: 92.5 | I189: 91 | J189: 61.167 | L189: 61.167 | M189: 2 | N189: 通过
A190: 188 | B190: 杨骄 | C190: 女 | D190: 兴安盟内部审计管理中心 | E190: 审计（3）（一般岗位） | F190: 111522011027 | G190: 蒙古族 | H190: 82.5 | I190: 83.5 | J190: 55.333 | K190: 2.5 | L190: 57.833 | M190: 3 | N190: 通过
A191: 189 | B191: 刘晓宇 | C191: 女 | D191: 兴安盟内部审计管理中心 | E191: 审计（4）（一般岗位） | F191: 111522011108 | G191: 汉族 | H191: 100.5 | I191: 97 | J191: 65.833 | L191: =J191+K191 -> 65.833 | M191: 1 | N191: 通过
A192: 190 | B192: 王媛 | C192: 女 | D192: 兴安盟内部审计管理中心 | E192: 审计（4）（一般岗位） | F192: 111522011105 | G192: 汉族 | H192: 99.5 | I192: 86 | J192: 61.833 | L192: 61.833 | M192: 2 | N192: 通过
A193: 191 | B193: 石镇源 | C193: 男 | D193: 兴安盟内部审计管理中心 | E193: 审计（4）（一般岗位） | F193: 111522011107 | G193: 汉族 | H193: 101.5 | I193: 83.5 | J193: 61.667 | L193: 61.667 | M193: 3 | N193: 通过
A194: 192 | B194: 满圆圆 | C194: 女 | D194: 兴安盟内部审计管理中心 | E194: 审计（5）（一般岗位） | F194: 111522011217 | G194: 蒙古族 | H194: 112.5 | I194: 87 | J194: 66.500 | K194: 2.5 | L194: 69.000 | M194: 1 | N194: 通过
A195: 193 | B195: 徐颖 | C195: 女 | D195: 兴安盟内部审计管理中心 | E195: 审计（5）（一般岗位） | F195: 111522011307 | G195: 汉族 | H195: 110.5 | I195: 95 | J195: 68.500 | L195: 68.500 | M195: 2 | N195: 通过
A196: 194 | B196: 张欣 | C196: 女 | D196: 兴安盟内部审计管理中心 | E196: 审计（5）（一般岗位） | F196: 111522011319 | G196: 汉族 | H196: 102.5 | I196: 101 | J196: 67.833 | L196: 67.833 | M196: 3 | N196: 通过
A197: 195 | B197: 王梦然 | C197: 女 | D197: 兴安盟内部审计管理中心 | E197: 审计（5）（一般岗位） | F197: 111522011209 | G197: 汉族 | H197: 98.5 | I197: 96.5 | J197: 65.000 | L197: 65.000 | M197: 4 | N197: 通过
A198: 196 | B198: 王璐 | C198: 女 | D198: 兴安盟内部审计管理中心 | E198: 审计（5）（一般岗位） | F198: 111522011301 | G198: 蒙古族 | H198: 96 | I198: 88 | J198: 61.333 | K198: 2.5 | L198: 63.833 | M198: 6 | N198: 通过
A199: 197 | B199: 赵佳宇 | C199: 女 | D199: 兴安盟内部审计管理中心 | E199: 审计（5）（一般岗位） | F199: 111522011403 | G199: 蒙古族 | H199: 100 | I199: 81.5 | J199: 60.500 | K199: 2.5 | L199: 63.000 | M199: 7 | N199: 递补通过
A200: 198 | B200: 姜峰 | C200: 男 | D200: 兴安盟内部审计管理中心 | E200: 审计（5）（项目人员岗位含大学生退役士兵） | F200: 111522011625 | G200: 汉族 | H200: 96.5 | I200: 85.5 | J200: 60.667 | L200: 60.667 | M200: 3 | N200: 通过
... 960 more rows

Sheet Sheet2

Sheet Sheet3
